lending/lending_fUSD_20250114
["ID","MTS","AMOUNT","RATE_DAILY","PERIOD"]
[348869894,1736835043295,-500.0,9.998e-05,2]
[348869895,1736835043305,-500.0,9.998e-05,2]
[348869896,1736835043315,-500.0,9.998e-05,2]
[348869897,1736835043325,-500.0,9.998e-05,2]
[348869898,1736835043335,-500.0,9.998e-05,2]
[348869899,1736835043345,-500.0,9.998e-05,2]
[348869900,1736835043354,-725.56,9.998e-05,2]
[348869901,1736835043363,-678.32,9.998e-05,2]
[348869902,1736835043373,-500.0,9.998e-05,2]
[348869903,1736835043384,-629.5,9.998e-05,2]
[348869904,1736835043393,-500.0,9.998e-05,2]
[348869905,1736835043403,-500.0,9.998e-05,2]
[348869906,1736835043413,-858.64,9.998e-05,2]
[348869907,1736835043422,-500.0,9.998e-05,2]
[348869908,1736835043432,-592.9,9.998e-05,2]
[348869909,1736835043441,-500.0,9.998e-05,2]
[348869910,1736835043451,-500.0,9.998e-05,2]
[348869911,1736835043460,-783.12,9.998e-05,2]
[348869912,1736835043470,-500.0,9.998e-05,2]
[348869913,1736835043479,-535.33,9.998e-05,2]
[348869914,1736835043489,-500.0,9.998e-05,2]
[348869915,1736835043498,-500.0,9.998e-05,2]
[348869916,1736835043507,-500.0,9.998e-05,2]
[348869917,1736835043517,-500.0,9.998e-05,2]
[348869918,1736835043527,-500.0,9.998e-05,2]
[348869919,1736835043536,-500.0,9.998e-05,2]
[348869920,1736835043546,-500.0,9.998e-05,2]
[348869921,1736835043556,-500.0,9.998e-05,2]
[348869922,1736835043567,-556.37,9.998e-05,2]
[348869923,1736835043583,-500.0,9.998e-05,2]
[348869924,1736835043593,-500.0,9.998e-05,2]
[348869925,1736835043604,-841.3,9.998e-05,2]
[348869926,1736835043614,-825.71,9.998e-05,2]
[348869927,1736835043625,-500.0,9.998e-05,2]
[348869928,1736835043636,-500.0,9.998e-05,2]
[348869929,1736835043646,-764.89,9.998e-05,2]
[348869930,1736835043657,-500.0,9.998e-05,2]
[348869931,1736835043667,-500.0,9.998e-05,2]
[348869932,1736835043677,-500.0,9.998e-05,2]
[348869933,1736835043687,-500.0,9.998e-05,2]
[348869934,1736835043696,-500.0,9.998e-05,2]
[348869935,1736835043705,-500.0,9.998e-05,2]
[348869936,1736835043716,-500.0,9.998e-05,2]
[348869937,1736835043726,-500.0,9.998e-05,2]
[348869938,1736835043735,-500.0,9.998e-05,2]
[348869939,1736835043746,-764.93,9.998e-05,2]
[348869940,1736835043756,-500.0,9.998e-05,2]
[348869941,1736835043765,-500.0,9.998e-05,2]
[348869942,1736835043774,-500.0,9.998e-05,2]
[348869943,1736835043784,-1018.42,9.998e-05,2]
[348869944,1736835043793,-500.0,9.998e-05,2]
[348869945,1736835043803,-500.0,9.998e-05,2]
[348869946,1736835043813,-500.0,9.998e-05,2]
[348869947,1736835043822,-2489.52,9.998e-05,2]
[348869948,1736835043832,-500.0,9.998e-05,2]
[348869949,1736835044120,-500.0,9.998e-05,2]
[348869950,1736835044134,-500.0,9.998e-05,2]
[348869951,1736835044144,-500.0,9.998e-05,2]
[348869952,1736835044154,-500.0,9.998e-05,2]
[348869953,1736835044174,-927.37,9.998e-05,2]
[348869954,1736835044184,-652.95,9.998e-05,2]
[348869955,1736835044195,-500.0,9.998e-05,2]
[348869956,1736835044205,-500.0,9.998e-05,2]
[348869957,1736835044216,-500.0,9.998e-05,2]
[348869958,1736835044225,-500.0,9.998e-05,2]
[348869959,1736835044236,-43.56526218,9.998e-05,2]
[348869972,1736835045494,-500.0,9.997e-05,2]
[348869973,1736835045504,-456.43473782,9.998e-05,2]
[348869974,1736835045513,-500.0,9.998e-05,2]
[348869975,1736835045522,-1084.74,9.998e-05,2]
[348869976,1736835045531,-442.06212491,9.998e-05,2]
[348869977,1736835045613,-57.93787509,9.998e-05,2]
[348869978,1736835045622,-500.0,9.998e-05,2]
[348869979,1736835045631,-500.0,9.998e-05,2]
[348869980,1736835045644,-324.56212491,9.998e-05,2]
[348869981,1736835045676,-175.43787509,9.998e-05,2]
[348869982,1736835045685,-355.63090411,9.998e-05,2]
[348869983,1736835045697,-138.8506152,9.998e-05,2]
[348869984,1736835045707,-500.0,9.998e-05,2]
[348869985,1736835045719,-500.0,9.998e-05,2]
[348869986,1736835045728,-565.67,9.998e-05,2]
[348869987,1736835045739,-497.07453179,9.998e-05,2]
[348869988,1736835045748,-500.0,9.998e-05,2]
[348869989,1736835045758,-500.0,9.998e-05,2]
[348869990,1736835045769,-500.0,9.998e-05,2]
[348869991,1736835045779,-500.0,9.998e-05,2]
[348869992,1736835045788,-500.0,9.998e-05,2]
[348869993,1736835045799,-1133.27,9.998e-05,2]
[348869994,1736835045810,-500.0,9.998e-05,2]
[348869995,1736835045819,-2001.99,9.998e-05,2]
[348869996,1736835045829,-500.0,9.998e-05,2]
[348869997,1736835045839,-500.0,9.998e-05,2]
[348869998,1736835045848,-500.0,9.998e-05,2]
[348869999,1736835045858,-500.0,9.998e-05,2]
[348870000,1736835045869,-500.0,9.998e-05,2]
[348870001,1736835045880,-500.0,9.998e-05,2]
[348870002,1736835045891,-500.0,9.998e-05,2]
[348870003,1736835045901,-500.0,9.998e-05,2]
[348870004,1736835045910,-500.0,9.998e-05,2]
[348870006,1736835045920,-1607.09,9.998e-05,2]
[348870008,1736835045930,-1264.17,9.998e-05,2]
[348870010,1736835045939,-500.0,9.998e-05,2]
[348870012,1736835045949,-500.0,9.998e-05,2]
[348870014,1736835045958,-500.0,9.998e-05,2]
[348870016,1736835045967,-829.17,9.998e-05,2]
[348870018,1736835045976,-1635.45,9.998e-05,2]
[348870020,1736835045985,-500.0,9.998e-05,2]
[348870021,1736835045996,-500.0,9.998e-05,2]
[348870022,1736835046005,-500.0,9.998e-05,2]
[348870023,1736835046018,-500.0,9.998e-05,2]
[348870024,1736835046027,-500.0,9.998e-05,2]
[348870025,1736835046036,-4027.32,9.998e-05,2]
[348870026,1736835046045,-661.83,9.998e-05,2]
[348870027,1736835046054,-804.91,9.998e-05,2]
[348870028,1736835046063,-651.35,9.998e-05,2]
[348870029,1736835046072,-500.0,9.998e-05,2]
[348870030,1736835046082,-500.0,9.998e-05,2]
[348870031,1736835046091,-1000.0,9.998e-05,2]
[348870032,1736835046100,-500.0,9.998e-05,2]
[348870033,1736835046109,-533.93142622,9.998e-05,2]
[348870034,1736835046118,-500.0,9.998e-05,2]
[348870035,1736835046127,-852.96,9.998e-05,2]
[348870036,1736835046136,-945.06,9.998e-05,2]
[348870037,1736835046145,-1682.16,9.998e-05,2]
[348870038,1736835046155,-644.75,9.998e-05,2]
[348870039,1736835046164,-500.0,9.998e-05,2]
[348870040,1736835046173,-500.0,9.998e-05,2]
[348870041,1736835046182,-780.46,9.998e-05,2]
[348870042,1736835046191,-500.0,9.998e-05,2]
[348870043,1736835046200,-623.50848714,9.998e-05,2]
[348870044,1736835046209,-695.46,9.998e-05,2]
[348870045,1736835046219,-2161.73,9.998e-05,2]
[348870046,1736835046228,-500.0,9.998e-05,2]
[348870047,1736835046238,-1470.28,9.998e-05,2]
[348870048,1736835046247,-500.0,9.998e-05,2]
[348870049,1736835046257,-500.0,9.998e-05,2]
[348870050,1736835046266,-500.0,9.998e-05,2]
[348870051,1736835046275,-966.54,9.998e-05,2]
[348870052,1736835046284,-500.0,9.998e-05,2]
[348870053,1736835046294,-500.0,9.998e-05,2]
[348870054,1736835046304,-1725.89,9.998e-05,2]
[348870055,1736835046313,-889.27,9.998e-05,2]
[348870056,1736835046322,-500.0,9.998e-05,2]
[348870057,1736835046332,-500.0,9.998e-05,2]
[348870058,1736835046342,-500.0,9.998e-05,2]
[348870059,1736835046351,-500.0,9.998e-05,2]
[348870060,1736835046360,-1888.08,9.998e-05,2]
[348870061,1736835046370,-862.78,9.998e-05,2]
[348870062,1736835046379,-829.6,9.998e-05,2]
[348870063,1736835046389,-500.0,9.998e-05,2]
[348870064,1736835046399,-500.0,9.998e-05,2]
[348870065,1736835046409,-500.0,9.998e-05,2]
[348870066,1736835046419,-500.0,9.998e-05,2]
[348870067,1736835046428,-500.0,9.998e-05,2]
[348870068,1736835046438,-500.0,9.998e-05,2]
[348870069,1736835046447,-500.0,9.998e-05,2]
[348870070,1736835046457,-500.0,9.998e-05,2]
[348870071,1736835046467,-500.0,9.998e-05,2]
[348870072,1736835046476,-4370.14,9.998e-05,2]
[348870073,1736835046486,-500.0,9.998e-05,2]
[348870074,1736835046495,-1989.45,9.998e-05,2]
[348870075,1736835046504,-500.0,9.998e-05,2]
[348870076,1736835046514,-500.0,9.998e-05,2]
[348870077,1736835046523,-677.6,9.998e-05,2]
[348870078,1736835046533,-500.0,9.998e-05,2]
[348870079,1736835046543,-500.0,9.998e-05,2]
[348870080,1736835046552,-3117.5,9.998e-05,2]
[348870081,1736835046562,-501.22052109,9.998e-05,2]
[348870082,1736835046576,-500.0,9.998e-05,2]
[348870083,1736835046585,-500.0,9.998e-05,2]
[348870084,1736835046594,-500.0,9.998e-05,2]
[348870085,1736835046604,-500.0,9.998e-05,2]
[348870086,1736835046613,-500.0,9.998e-05,2]
[348870087,1736835046623,-507.29189089,9.998e-05,2]
[348870088,1736835046632,-500.0,9.998e-05,2]
[348870089,1736835046645,-500.0,9.998e-05,2]
[348870090,1736835046655,-500.0,9.998e-05,2]
[348870091,1736835046665,-835.05,9.998e-05,2]
[348870092,1736835046675,-915.78,9.998e-05,2]
[348870093,1736835046684,-391.88938867,9.998e-05,2]
[348870094,1736835046694,-500.0,9.998e-05,2]
[348870095,1736835046703,-2891.26,9.998e-05,2]
[348870096,1736835046713,-500.0,9.999e-05,2]
[348870097,1736835046722,-11018.20550534,9.999e-05,2]
[348870098,1736835046731,-721.69,9.999e-05,2]
[348870099,1736835046741,-500.0,9.999e-05,2]
[348870100,1736835046750,-1063.7,9.999e-05,2]
[348870101,1736835046759,-566.0,0.0001,2]
[348870102,1736835046769,-95205.56004562,0.0001,2]
[348870103,1736835046782,-500.0,0.0001,2]
[348870104,1736835103844,898.73,8.219e-05,2]
[348870105,1736835360467,2004.0,0.0002,30]
[348870107,1736835775937,1000.0,9.9e-05,10]
[348870108,1736835786496,1000.0,0.00023,120]
[348870111,1736836028900,903.3,8.219e-05,2]
[348870119,1736836073168,1373.09,0.00023,120]
[348870138,1736836231763,-1000.0,9.114e-05,2]
[348870139,1736836231774,-164.26,9.118e-05,2]
[348870140,1736836231784,-348.45,9.159e-05,2]
[348870141,1736836231794,-250.0,9.257e-05,2]
[348870142,1736836231805,-167.29,9.275e-05,2]
[348870143,1736836231816,-156.749,9.5e-05,2]
[348870144,1736836231825,-73.83080281,9.5e-05,2]
[348870145,1736836231846,-708.38919719,9.5e-05,2]
[348870146,1736836231861,-438.01,9.5e-05,2]
[348870147,1736836231873,-438.01,9.5e-05,2]
[348870148,1736836231884,-438.01,9.5e-05,2]
[348870149,1736836231895,-893.78,9.578e-05,2]
[348870150,1736836231907,-151.87055422,9.773e-05,2]
[348870151,1736836231919,-557.18942639,9.897e-05,2]
[348870152,1736836231934,-2326.65286154,9.897e-05,2]
[348870153,1736836231998,-1069.86039406,9.897e-05,2]
[348870154,1736836232075,-900.0,9.897e-05,2]
[348870155,1736836232229,-535.48731801,9.897e-05,2]
[348870156,1736836232241,-500.0,9.973e-05,2]
[348870157,1736836232252,-150.0,9.995e-05,2]
[348870158,1736836232267,-161.06266199,9.996e-05,2]
[348870159,1736836232283,-636.0875002,9.996e-05,2]
[348870160,1736836232299,-611.85983781,9.996e-05,2]
[348870161,1736836232312,-1653.98,9.996e-05,2]
[348870162,1736836232325,-500.0,9.996e-05,2]
[348870163,1736836232338,-864.35,9.996e-05,2]
[348870164,1736836232353,-1906.55,9.996e-05,2]
[348870165,1736836232367,-877.62,9.996e-05,2]
[348870166,1736836232381,-817.13,9.996e-05,2]
[348870167,1736836232393,-791.05,9.996e-05,2]
[348870168,1736836232404,-500.0,9.996e-05,2]
[348870169,1736836232415,-1007.48,9.996e-05,2]
[348870170,1736836232424,-604.61,9.996e-05,2]
[348870171,1736836232436,-1512.42,9.996e-05,2]
[348870172,1736836232448,-1484.7,9.996e-05,2]
[348870173,1736836232462,-1320.46855085,9.996e-05,2]
[348870174,1736836232477,-164.23144915,9.996e-05,2]
[348870175,1736836232491,-312.23908919,9.996e-05,2]
[348870176,1736836237611,-769.96443153,9.996e-05,2]
[348870177,1736836237623,-414.04008287,9.996e-05,2]
[348870178,1736836237634,-410.80639641,9.996e-05,2]
[348870179,1736836237644,-295.25617959,9.996e-05,2]
[348870180,1736836237691,-1027.90064709,9.996e-05,2]
[348870181,1736836237704,-583.14,9.996e-05,2]
[348870182,1736836237716,-833.69583873,9.996e-05,2]
[348870183,1736836237774,-495.91733459,9.996e-05,2]
[348870184,1736836237784,-1357.37315005,9.996e-05,2]
[348870185,1736836237795,-358.16823312,9.996e-05,2]
[348870186,1736836237807,-2487.3617592,9.996e-05,2]
[348870187,1736836237819,-2686.13947198,9.996e-05,2]
[348870188,1736836237831,-1372.87738565,9.996e-05,2]
[348870189,1736836237842,-1111.82121549,9.996e-05,2]
[348870190,1736836237853,-539.16878451,9.996e-05,2]
[348870191,1736836237863,-500.0,9.996e-05,2]
[348870192,1736836237872,-2205.1,9.996e-05,2]
[348870193,1736836237882,-3670.6,9.996e-05,2]
[348870194,1736836237891,-2108.76,9.996e-05,2]
[348870195,1736836237901,-500.0,9.996e-05,2]
[348870196,1736836237911,-1403.08,9.996e-05,2]
[348870197,1736836237920,-1017.33603928,9.996e-05,2]
[348870198,1736836237965,-355.72,9.996e-05,2]
[348870199,1736836238135,-352.64341283,9.996e-05,2]
[348870200,1736836238147,-1977.60054789,9.996e-05,2]
[348870201,1736836238158,-733.06,9.996e-05,2]
[348870202,1736836238170,-500.0,9.996e-05,2]
[348870203,1736836238180,-500.0,9.996e-05,2]
[348870204,1736836238190,-1051.73,9.996e-05,2]
[348870205,1736836238200,-1066.13,9.996e-05,2]
[348870206,1736836238210,-500.0,9.996e-05,2]
[348870207,1736836238219,-500.0,9.996e-05,2]
[348870208,1736836238230,-554.53,9.996e-05,2]
[348870209,1736836238239,-2385.79,9.996e-05,2]
[348870210,1736836238248,-500.0,9.996e-05,2]
[348870211,1736836238257,-674.49,9.996e-05,2]
[348870212,1736836238266,-500.0,9.996e-05,2]
[348870213,1736836238275,-2158.96,9.996e-05,2]
[348870214,1736836238284,-500.0,9.996e-05,2]
[348870216,1736836238293,-808.1182,9.997e-05,2]
[348870218,1736836238302,-158.652707,9.997e-05,2]
[348870220,1736836238311,-156.984396,9.997e-05,2]
[348870221,1736836238321,-896.932771,9.997e-05,2]
[348870223,1736836238330,-1298.68796245,9.997e-05,2]
[348870224,1736836238342,-315.91003755,9.997e-05,2]
[348870225,1736836238351,-500.0,9.997e-05,2]
[348870226,1736836238360,-655.17996245,9.997e-05,2]
[348870228,1736836239772,-645.32505947,9.996e-05,2]
[348870229,1736836239784,-23.22494053,9.996e-05,2]
[348870230,1736836239794,-500.0,9.996e-05,2]
[348870231,1736836239804,-476.35505947,9.997e-05,2]
[348870232,1736836239858,-23.64494053,9.997e-05,2]
[348870233,1736836239869,-291.69475318,9.997e-05,2]
[348870234,1736836239999,-208.30524682,9.997e-05,2]
[348870235,1736836240009,-861.61,9.997e-05,2]
[348870236,1736836240019,-598.36,9.997e-05,2]
[348870237,1736836240029,-628.65,9.997e-05,2]
[348870238,1736836240040,-784.07,9.997e-05,2]
[348870239,1736836240052,-500.0,9.997e-05,2]
[348870240,1736836240062,-500.0,9.997e-05,2]
[348870241,1736836240072,-500.0,9.997e-05,2]
[348870242,1736836240083,-500.0,9.997e-05,2]
[348870243,1736836240092,-723.22,9.997e-05,2]
[348870244,1736836240103,-556.73,9.997e-05,2]
[348870245,1736836240112,-500.0,9.997e-05,2]
[348870246,1736836240122,-500.0,9.997e-05,2]
[348870247,1736836240131,-500.0,9.997e-05,2]
[348870248,1736836240142,-533.18,9.997e-05,2]
[348870249,1736836240152,-709.81,9.997e-05,2]
[348870250,1736836240162,-500.0,9.997e-05,2]
[348870251,1736836240171,-1175.96,9.997e-05,2]
[348870253,1736836240182,-500.0,9.997e-05,2]
[348870254,1736836240192,-500.0,9.997e-05,2]
[348870255,1736836240202,-825.82,9.997e-05,2]
[348870256,1736836240212,-1579.07,9.997e-05,2]
[348870257,1736836240221,-500.0,9.997e-05,2]
[348870258,1736836240231,-761.44,9.997e-05,2]
[348870259,1736836240240,-500.0,9.997e-05,2]
[348870260,1736836240250,-838.14,9.997e-05,2]
[348870261,1736836240260,-500.0,9.997e-05,2]
[348870262,1736836240271,-500.0,9.997e-05,2]
[348870263,1736836240281,-500.0,9.997e-05,2]
[348870264,1736836240291,-508.59767771,9.997e-05,2]
[348870265,1736836240300,-500.0,9.997e-05,2]
[348870266,1736836240310,-2310.88,9.997e-05,2]
[348870267,1736836240320,-500.0,9.997e-05,2]
[348870268,1736836240330,-500.0,9.997e-05,2]
[348870270,1736836240339,-500.0,9.997e-05,2]
[348870271,1736836240348,-500.0,9.997e-05,2]
[348870272,1736836240359,-421.95057768,9.997e-05,2]
[348870273,1736836240369,-500.0,9.997e-05,2]
[348870274,1736836240378,-500.0,9.997e-05,2]
[348870275,1736836240387,-500.0,9.997e-05,2]
[348870276,1736836240399,-1166.87,9.997e-05,2]
[348870277,1736836240409,-500.0,9.997e-05,2]
[348870278,1736836240419,-975.99,9.997e-05,2]
[348870279,1736836240429,-500.0,9.997e-05,2]
[348870280,1736836240438,-500.0,9.997e-05,2]
[348870281,1736836240448,-500.0,9.997e-05,2]
[348870282,1736836240457,-500.0,9.997e-05,2]
[348870283,1736836240468,-500.0,9.997e-05,2]
[348870284,1736836240478,-909.57,9.997e-05,2]
[348870285,1736836240488,-500.0,9.997e-05,2]
[348870286,1736836240501,-500.0,9.997e-05,2]
[348870287,1736836240510,-500.0,9.997e-05,2]
[348870288,1736836240520,-500.0,9.997e-05,2]
[348870289,1736836240529,-500.0,9.997e-05,2]
[348870290,1736836240538,-1050.64,9.997e-05,2]
[348870291,1736836240547,-1075.27,9.997e-05,2]
[348870292,1736836240557,-500.0,9.997e-05,2]
[348870293,1736836240567,-500.0,9.997e-05,2]
[348870294,1736836240576,-634.92,9.997e-05,2]
[348870295,1736836240586,-566.95,9.997e-05,2]
[348870296,1736836240595,-500.0,9.997e-05,2]
[348870297,1736836240605,-500.0,9.997e-05,2]
[348870298,1736836240615,-500.0,9.997e-05,2]
[348870299,1736836240625,-500.0,9.997e-05,2]
[348870300,1736836240634,-795.85,9.997e-05,2]
[348870301,1736836240643,-2858.44,9.997e-05,2]
[348870302,1736836240653,-1086.05,9.997e-05,2]
[348870303,1736836240663,-500.0,9.997e-05,2]
[348870304,1736836240672,-500.0,9.997e-05,2]
[348870305,1736836240681,-500.0,9.997e-05,2]
[348870306,1736836240691,-500.0,9.997e-05,2]
[348870307,1736836240701,-500.0,9.997e-05,2]
[348870308,1736836240710,-1736.97,9.997e-05,2]
[348870309,1736836240719,-500.0,9.997e-05,2]
[348870310,1736836240729,-220.20252576,9.997e-05,2]
[348870311,1736836240739,-500.0,9.997e-05,2]
[348870312,1736836240748,-500.0,9.997e-05,2]
[348870313,1736836240758,-557.53617716,9.997e-05,2]
[348870314,1736836240767,-500.0,9.997e-05,2]
[348870315,1736836240777,-734.81,9.997e-05,2]
[348870316,1736836240787,-826.11,9.997e-05,2]
[348870317,1736836240796,-500.0,9.997e-05,2]
[348870318,1736836240806,-500.0,9.997e-05,2]
[348870319,1736836240815,-3404.16,9.997e-05,2]
[348870320,1736836240825,-500.0,9.997e-05,2]
[348870321,1736836240834,-500.0,9.997e-05,2]
[348870322,1736836240843,-1118.92,9.997e-05,2]
[348870323,1736836240853,-3466.15,9.997e-05,2]
[348870324,1736836240862,-500.0,9.997e-05,2]
[348870325,1736836240871,-500.0,9.997e-05,2]
[348870326,1736836240880,-550.17,9.997e-05,2]
[348870327,1736836240890,-500.0,9.997e-05,2]
[348870328,1736836240899,-809.35,9.997e-05,2]
[348870329,1736836240909,-500.0,9.997e-05,2]
[348870330,1736836240919,-740.49,9.997e-05,2]
[348870331,1736836240930,-629.31231673,9.997e-05,2]
[348870332,1736836240942,-800.8,9.997e-05,2]
[348870333,1736836240952,-500.0,9.997e-05,2]
[348870334,1736836240962,-500.0,9.997e-05,2]
[348870335,1736836240971,-500.0,9.997e-05,2]
[348870336,1736836240981,-500.0,9.997e-05,2]
[348870337,1736836240990,-651.28,9.997e-05,2]
[348870338,1736836241000,-1339.22,9.997e-05,2]
[348870339,1736836241009,-662.78,9.997e-05,2]
[348870340,1736836241018,-500.0,9.997e-05,2]
[348870341,1736836241027,-500.0,9.997e-05,2]
[348870342,1736836241037,-500.0,9.997e-05,2]
[348870343,1736836241047,-500.0,9.997e-05,2]
[348870344,1736836241056,-4108.57,9.997e-05,2]
[348870345,1736836241065,-1810.8,9.997e-05,2]
[348870346,1736836241076,-620.64,9.997e-05,2]
[348870347,1736836241085,-1142.6,9.997e-05,2]
[348870348,1736836241095,-500.0,9.997e-05,2]
[348870349,1736836241104,-850.37,9.997e-05,2]
[348870350,1736836241113,-500.0,9.997e-05,2]
[348870351,1736836241123,-500.0,9.997e-05,2]
[348870352,1736836241132,-500.0,9.997e-05,2]
[348870353,1736836241141,-651.68,9.997e-05,2]
[348870354,1736836241151,-500.0,9.997e-05,2]
[348870355,1736836241161,-585.37,9.997e-05,2]
[348870356,1736836241170,-779.68,9.997e-05,2]
[348870357,1736836241179,-500.0,9.997e-05,2]
[348870358,1736836241188,-579.0,9.997e-05,2]
[348870359,1736836241199,-579.75,9.997e-05,2]
[348870360,1736836241208,-2990.5,9.997e-05,2]
[348870361,1736836241217,-3425.04,9.997e-05,2]
[348870362,1736836241227,-500.0,9.997e-05,2]
[348870363,1736836241237,-500.0,9.997e-05,2]
[348870364,1736836241246,-1444.09,9.997e-05,2]
[348870365,1736836241256,-500.0,9.997e-05,2]
[348870366,1736836241265,-1489.26,9.997e-05,2]
[348870367,1736836241274,-2693.91,9.997e-05,2]
[348870368,1736836241283,-2235.08,9.997e-05,2]
[348870369,1736836241293,-888.02,9.997e-05,2]
[348870370,1736836241303,-500.0,9.997e-05,2]
[348870371,1736836241312,-7765.05,9.997e-05,2]
[348870372,1736836241322,-500.0,9.997e-05,2]
[348870373,1736836241331,-1081.77,9.997e-05,2]
[348870374,1736836241341,-500.0,9.997e-05,2]
[348870375,1736836241350,-519.9445504,9.997e-05,2]
[348870376,1736836241359,-1216.4,9.997e-05,2]
[348870377,1736836241369,-872.78,9.997e-05,2]
[348870378,1736836241379,-934.57,9.997e-05,2]
[348870379,1736836241388,-1856.97,9.997e-05,2]
[348870380,1736836241399,-902.4,9.997e-05,2]
[348870381,1736836241407,-829.86,9.997e-05,2]
[348870382,1736836241416,-500.0,9.997e-05,2]
[348870383,1736836241426,-1289.43,9.997e-05,2]
[348870384,1736836241435,-500.0,9.997e-05,2]
[348870385,1736836241444,-551.79,9.997e-05,2]
[348870386,1736836241455,-1155.07,9.997e-05,2]
[348870387,1736836241464,-4512.85,9.997e-05,2]
[348870388,1736836241474,-500.0,9.997e-05,2]
[348870389,1736836241484,-500.0,9.997e-05,2]
[348870390,1736836241496,-500.0,9.997e-05,2]
[348870391,1736836241506,-1041.68,9.997e-05,2]
[348870392,1736836241517,-1211.5,9.997e-05,2]
[348870393,1736836241526,-574.14,9.997e-05,2]
[348870394,1736836241536,-995.06,9.997e-05,2]
[348870395,1736836241546,-1875.06,9.997e-05,2]
[348870396,1736836241556,-3204.66,9.997e-05,2]
[348870397,1736836241566,-523.36,9.997e-05,2]
[348870398,1736836241578,-332.00913952,9.997e-05,2]
[348870399,1736836241588,-500.0,9.997e-05,2]
[348870400,1736836241597,-1540.13,9.997e-05,2]
[348870401,1736836241606,-500.0,9.997e-05,2]
[348870402,1736836241615,-4422.49,9.997e-05,2]
[348870403,1736836241624,-500.0,9.997e-05,2]
[348870404,1736836241635,-500.0,9.997e-05,2]
[348870405,1736836241646,-1567.3,9.997e-05,2]
[348870406,1736836241657,-500.0,9.997e-05,2]
[348870407,1736836241668,-761.15,9.997e-05,2]
[348870408,1736836241679,-1645.28,9.997e-05,2]
[348870409,1736836241690,-676.74,9.997e-05,2]
[348870410,1736836241700,-500.0,9.997e-05,2]
[348870411,1736836241709,-1492.71,9.997e-05,2]
[348870412,1736836241719,-1341.6,9.997e-05,2]
[348870413,1736836241728,-500.0,9.997e-05,2]
[348870414,1736836241738,-500.0,9.997e-05,2]
[348870415,1736836241748,-500.0,9.997e-05,2]
[348870416,1736836241757,-1293.28,9.997e-05,2]
[348870417,1736836241766,-500.0,9.997e-05,2]
[348870418,1736836241776,-500.0,9.997e-05,2]
[348870419,1736836241786,-500.0,9.997e-05,2]
[348870420,1736836241795,-3355.47,9.997e-05,2]
[348870421,1736836241805,-4356.53,9.997e-05,2]
[348870422,1736836241815,-500.0,9.997e-05,2]
[348870423,1736836241825,-604.74,9.997e-05,2]
[348870424,1736836241835,-3220.43,9.997e-05,2]
[348870425,1736836241844,-3859.51,9.997e-05,2]
[348870426,1736836241854,-500.0,9.997e-05,2]
[348870427,1736836241863,-1000.0,9.997e-05,2]
[348870428,1736836241873,-2206.47,9.997e-05,2]
[348870429,1736836241883,-500.0,9.997e-05,2]
[348870430,1736836241894,-918.08,9.997e-05,2]
[348870431,1736836241905,-500.0,9.997e-05,2]
[348870432,1736836241915,-1732.77,9.997e-05,2]
[348870433,1736836241925,-905.69,9.997e-05,2]
[348870434,1736836242130,-808.69,9.997e-05,2]
[348870435,1736836242142,-500.0,9.997e-05,2]
[348870436,1736836242151,-1538.43,9.997e-05,2]
[348870437,1736836242161,-500.0,9.998e-05,2]
[348870438,1736836242171,-531.22831129,9.998e-05,2]
[348870439,1736836242181,-194.86534115,9.998e-05,2]
[348870440,1736836242191,-500.0,9.998e-05,2]
[348870441,1736836242203,-500.0,9.998e-05,2]
[348870442,1736836242213,-500.0,9.998e-05,2]
[348870443,1736836242223,-500.0,9.998e-05,2]
[348870444,1736836242234,-864.71,9.998e-05,2]
[348870445,1736836242243,-500.0,9.998e-05,2]
[348870446,1736836242253,-500.0,9.998e-05,2]
[348870447,1736836242262,-355.37510794,9.998e-05,2]
[348870448,1736836242271,-513.03,9.998e-05,2]